Cogmind - Beta 13 @@@ ROGUE MODE // 2024.04.04 @ 12:24:36 Player: SPACEGOAT Result: Destroyed by C-40 Crusher with Compactor Performance ------------- Evolutions (3) 1500 Regions Visited (5) 1000 Robots Destroyed (23) 115 Value Destroyed (545) 545 Prototype IDs (2) 40 Alien Tech Used (0) 0 Bonus (0) 0 TOTAL SCORE: 3200 Bonus ------- None Cogmind --------- Core Integrity 0/700 Matter 300/300 Energy 99/100 System Corruption 15% Temperature Cool (0) Movement Core (50) Location -7/Waste Parts ------- > --- POWER (2) -------- (None) > --- PROPULSION (3) --- (None) > --- UTILITY (6) ------ (None) > --- WEAPON (2) ------- (None) > --- INVENTORY (5) ---- Improved Heat Sink Improved Heat Sink Signal Interpreter Terrain Scan Processor Improved Salvage Targeting Computer Peak State ------------ > --- POWER ------------ Micro Nuclear Core > --- PROPULSION ------- Armored Treads Gravmag System Gravmag System > --- UTILITY ---------- Large Battery Visual Processing Unit Advanced Visual Processing Unit Advanced Targeting Computer Transmission Jammer ECM Suite > --- WEAPON ----------- Heavy Particle Cannon > --- INVENTORY -------- Improved Heat Sink Improved Heat Sink Signal Interpreter Terrain Scan Processor Improved Salvage Targeting Computer [Rating: 33] Favorites ----------- Power Light Ion Engine Engine Light Ion Engine Power Core Light Nuclear Core Propulsion Light Treads Treads Light Treads Leg Improved Titanium Leg Hover Unit Improved Hover Unit Flight Unit Xenon Bombardment Thruster Utility Visual Processing Unit Device Improved Terrain Scanner Storage Large Battery Processor Visual Processing Unit Weapon EM Pulse Gun Energy Gun EM Pulse Gun Energy Cannon Light EM Pulse Cannon Ballistic Gun Light Assault Rifle Launcher Grenade Launcher Special Weapon Mining Laser Build | -11 -10 -9 -8 -7 -7 ------- Run | Yrd Mat Mat Mat Fac Was Slots Evolved 6 | . . 2 2 2 . Power 1 | . . . 1 . . Propulsion 1 | . . . . 1 . Utility 4 | . . 2 1 1 . Weapon . | . . . . . . Parts Attached 38 | 7 8 5 10 7 1 Power 8 | 1 1 2 3 1 . Engine 5 | 1 1 . 3 . . Core 3 | . . 2 . 1 . Reactor . | . . . . . . Propulsion 9 | 2 2 . 1 3 1 Treads 3 | 2 . . 1 . . Leg 1 | . . . . 1 . Wheel . | . . . . . . Hover 4 | . 2 . . 2 . Flight 1 | . . . . . 1 Utility 13 | 2 2 2 5 2 . Device 7 | 1 1 2 1 2 . Storage 2 | 1 . . 1 . . Processor 4 | . 1 . 3 . . Hackware . | . . . . . . Protection . | . . . . . . Artifact . | . . . . . . Weapon 8 | 2 3 1 1 1 . Energy Gun 3 | 2 1 . . . . Energy Cannon 2 | . . . 1 1 . Ballistic Gun 1 | . 1 . . . . Ballistic Cannon . | . . . . . . Launcher 1 | . . 1 . . . Special Weapon 1 | . 1 . . . . Impact Weapon . | . . . . . . Slashing Weapon . | . . . . . . Piercing Weapon . | . . . . . . Special Melee Weapon . | . . . . . . Unidentified Prototypes . | . . . . . . Corrupted Parts 1 | . . . . . 1 System Corruption 8 | . . . . . 8 Parts Lost 22 | . 1 8 7 1 5 Power 7 | . 1 2 3 . 1 Propulsion 5 | . . 2 . 1 2 Utility 6 | . . 1 3 . 2 Weapon 4 | . . 3 1 . . Highest Loss Streak 5 | . 1 4 2 1 5 To Critical Strikes 1 | . . 1 . . . Average Slot Usage (%) 71 | . 99 78 44 59 65 Engine 4 | . 13 . 3 . . Core 3 | . . 10 . 1 5 Treads 7 | . 23 . . 7 5 Leg 1 | . . . . 5 . Hover 5 | . 4 12 . 2 5 Device 15 | . 14 31 6 9 12 Storage 5 | . 11 . 5 7 5 Processor 14 | . 2 11 23 23 18 Energy Gun 5 | . 20 2 . . . Energy Cannon 1 | . . . 4 1 5 Ballistic Gun 4 | . 6 9 . . . Naked Turns 14 | . . . . . 14 Heaviest Build 18 | 12 15 12 11 18 18 Greatest Support 40 | 40 40 14 20 20 20 Greatest Overweight (x) 3 | . . 3 3 1 1 Average Overweight (x) . | . . . 1 . . Largest Inventory Capacity 8 | 8 8 5 5 5 5 Average Capacity 5 | 7 7 5 5 5 5 Most Carried 7 | 4 7 5 5 5 5 Average Carried 3 | 2 4 4 2 2 5 Final Capacity 8 | 8 5 5 5 5 5 Final Carried 5 | 3 5 4 2 5 5 Class Distribution -------------------- 64% | Mutant 35% | Infiltrator-Mutant Dominant Class ---------------- Mutant | -10/Materials Infiltrator-Mutant | -9/Materials Mutant | -8/Materials Mutant | -7/Factory Infiltrator-Mutant | -7/Waste Resources | -11 -10 -9 -8 -7 -7 ----------- Run | Yrd Mat Mat Mat Fac Was Matter Collected 554 | 270 92 57 50 85 . Remotely . | . . . . . . Salvage Created 826 | 106 264 165 177 114 . Parts 46 | 9 13 5 10 9 . Haulers Intercepted 1 | . 1 . . . . Recyclers Shooed 2 | 1 . . 1 . . Parts Field Recycled . | . . . . . . Retrieved Matter . | . . . . . . Parts Self-Destructed . | . . . . . . Prevented . | . . . . . . Kills | -11 -10 -9 -8 -7 -7 ------- Run | Yrd Mat Mat Mat Fac Was Combat Hostiles Destroyed 14 | . 5 2 5 2 . Guns 3 | . 3 . . . . Cannons 2 | . . . 1 1 . AOE 7 | . 2 2 3 . . Classes Destroyed 10 | 2 4 2 . 2 . Builder 2 | . . 1 1 . . Tunneler 2 | 2 . . . . . Hauler 1 | . 1 . . . . Recycler 2 | 1 . 1 . . . Mechanic 1 | . . 1 . . . Watcher 1 | . 1 . . . . Swarmer 4 | . 1 . 3 . . Grunt 8 | . 4 2 2 . . Sentry 1 | . . . . 1 . Programmer 1 | . . . . 1 . Best Kill Streak 5 | 1 3 5 4 1 . Combat Bots Only 3 | . 3 2 3 1 . Max Kills in Single Turn 2 | 1 1 2 2 1 . Gunslinging . | . . . . . . Exploded 2 | . 1 1 2 . . Melee . | . . . . . . Uniques/NPCs Destroyed . | . . . . . . Combat | -11 -10 -9 -8 -7 -7 -------- Run | Yrd Mat Mat Mat Fac Was Hostile Shots Fired 272 | . 36 87 93 42 14 Missed 84 | . 10 30 27 17 . Damage Taken 2898 | . 302 670 989 233 704 Core 1604 | . 67 312 501 66 658 Absorbed by Shields . | . . . . . . Core Remaining (%) 50 | 100 73 22 8 . . Volleys Fired 67 | 14 22 5 18 8 . Largest 2 | 2 2 2 1 1 . Hottest 100 | 80 100 60 56 75 . Shots Fired 103 | 28 41 7 18 8 1 Gun 69 | 28 38 3 . . . Cannon 27 | . . . 18 8 1 Launcher 4 | . . 4 . . . Special 3 | . 3 . . . . Kinetic 15 | . 13 2 . . . Thermal 32 | 14 9 . . 8 1 Explosive 4 | . . 4 . . . Electromagnetic 52 | 14 19 1 18 . . Robot Hit Streak 10 | 4 7 6 10 7 4 Robot Miss Streak 4 | 4 2 1 1 1 . Penetration Max . | . . . . . . Secondary Targets 2 | . 2 . . . . Max Gunslinging Chain 1 | . 1 . . . . Shots Hit Robots 60 | 9 23 6 15 6 1 Core Hits 42 | 4 15 8 8 1 6 Critical Kills 1 | . . . . 1 . Critical Parts Destroyed . | . . . . . . Critical Strikes 2 | . . . 1 1 . Meltdown 1 | . . . . 1 . Corrupt 1 | . . . 1 . . Melee Attacks . | . . . . . . Impact . | . . . . . . Slashing . | . . . . . . Piercing . | . . . . . . Sneak Attacks . | . . . . . . Combat Hostiles . | . . . . . . Follow-up Attacks . | . . . . . . Damage Inflicted 1591 | 115 442 311 491 162 70 Guns 460 | 115 325 20 . . . Cannons 513 | . . . 326 162 25 Explosions 560 | . 117 278 165 . . Melee . | . . . . . . Ramming 58 | . . 13 . . 45 Kinetic 106 | . 86 20 . . . Thermal 534 | 45 137 . 165 162 25 Explosive 278 | . . 278 . . . Electromagnetic 615 | 70 219 . 326 . . Impact . | . . . . . . Slashing . | . . . . . . Piercing . | . . . . . . Highest Corruption 15 | . . . . . 15 Average Corruption 12 | . . . . . 12 Corruption Purged . | . . . . . . Corruption Blocked . | . . . . . . Effects 2 | . . . . . 2 Energy Discharges 1 | . . . . . 1 Misfires 1 | . . . . . 1 Overload Shots . | . . . . . . Overflow Damage 5 | . . . 5 . . Projectiles 5 | . . . 5 . . Explosions . | . . . . . . Melee . | . . . . . . Knockbacks . | . . . . . . Impact . | . . . . . . Kinetic . | . . . . . . Secondary . | . . . . . . Self-Inflicted Damage 25 | . . 6 . . 19 Shots . | . . . . . . Rammed 19 | . . 3 . . 16 Targets Rammed 19 | . . 3 . . 16 Kicked . | . . . . . . Crushed . | . . . . . . Highest Temperature 160 | 90 160 22 87 126 21 Average Temperature 49 | 32 66 11 50 44 16 Received Heat Transfer 1059 | . 159 279 558 63 . Siege Activations . | . . . . . . Robots Corrupted 1 | . . . 1 . . Combat Hostiles 1 | . . . 1 . . Parts Fried . | . . . . . . Impact Corruptions . | . . . . . . Robots Melted 1 | . . . . 1 . Combat Hostiles 1 | . . . . 1 . Parts Melted 3 | . . . 1 2 . Heat Transferred 759 | 100 200 . 200 222 37 Parts Sabotaged . | . . . . . . Parts Stolen . | . . . . . . Parts Stripped . | . . . . . . Power Chain Reactions 4 | . 2 . 2 . . Alert | -11 -10 -9 -8 -7 -7 ------- Run | Yrd Mat Mat Mat Fac Was Peak Influence 162 | 15 162 88 143 131 60 Initial 45 | . 9 . 24 36 45 Average 44 | 7 45 41 62 53 36 Maximum Alert Level . | . . . . . . Low Security (%) 100 | 100 100 100 100 100 100 Level 1 . | . . . . . . Level 2 . | . . . . . . Level 3 . | . . . . . . Level 4 . | . . . . . . Level 5 . | . . . . . . High Security . | . . . . . . Max Security . | . . . . . . Squads Dispatched 5 | . 1 1 2 1 . Investigation 3 | . 1 . 2 . . Extermination 1 | . . . . 1 . Reinforcement 1 | . . 1 . . . Assault . | . . . . . . Garrison . | . . . . . . Intercept . | . . . . . . Searches Triggered . | . . . . . . Construction Impeded . | . . . . . . Haulers Reinforced . | . . . . . . Active Scanning Responses . | . . . . . . Cargo Convoy Interrupts . | . . . . . . Stealth | -11 -10 -9 -8 -7 -7 --------- Run | Yrd Mat Mat Mat Fac Was Distress Signals 3 | . 1 1 1 . . Communications Jammed 14 | . . . . 14 . Distress Signals 14 | . . . . 14 . Times Spotted 63 | . 7 26 20 7 3 Peak Tracking Total 10 | . 4 10 7 3 3 Tactical Retreats 6 | . . 3 2 1 . Traps | -11 -10 -9 -8 -7 -7 ------- Run | Yrd Mat Mat Mat Fac Was Traps Triggered 2 | . 1 . . 1 . Indirectly . | . . . . . . Trap Hack Attempts . | . . . . . . Triggered . | . . . . . . Disarmed . | . . . . . . Reprogrammed . | . . . . . . Reused . | . . . . . . Traps Extracted . | . . . . . . Installed . | . . . . . . Triggered . | . . . . . . Machines | -11 -10 -9 -8 -7 -7 ---------- Run | Yrd Mat Mat Mat Fac Was Machines Disabled . | . . . . . . Max in Single Turn . | . . . . . . Machines Repaired . | . . . . . . Machines Dismantled . | . . . . . . Machines Sabotaged . | . . . . . . Overloaded Fab Kills . | . . . . . . Hacking | -11 -10 -9 -8 -7 -7 --------- Run | Yrd Mat Mat Mat Fac Was Machines Accessed 11 | . 4 3 4 . . Terminals 9 | . 4 2 3 . . Fabricators . | . . . . . . Repair Stations . | . . . . . . Recycling Units 1 | . . . 1 . . Scanalyzers 1 | . . 1 . . . Garrison Access . | . . . . . . Total Hacks 35 | . 10 11 14 . . Successful 20 | . 3 9 8 . . Failed 15 | . 7 2 6 . . Catastrophic 1 | . . . 1 . . Database Lockouts . | . . . . . . Manual . | . . . . . . Terminals 25 | . 10 3 12 . . Fabricators . | . . . . . . Repair Stations . | . . . . . . Recycling Units 2 | . . . 2 . . Scanalyzers 8 | . . 8 . . . Garrison Access . | . . . . . . Terminal Hacks 11 | . 3 2 6 . . Record 1 | . . . 1 . . Robot Analysis 1 | . 1 . . . . Prototype ID Bank 1 | . . . 1 . . Emergency Access Points 2 | . . . 2 . . Alert Level 1 | . 1 . . . . Unreport Threat 1 | . . . 1 . . Locate Traps 1 | . . . 1 . . Dispatch Records 1 | . 1 . . . . Maintenance Status 1 | . . 1 . . . Zone Layout 1 | . . 1 . . . Fabricator Hacks . | . . . . . . Repair Station Hacks . | . . . . . . Recycling Unit Hacks 2 | . . . 2 . . Process 1 | . . . 1 . . Report Inventory 1 | . . . 1 . . Scanalyzer 7 | . . 7 . . . Insert Component 3 | . . 3 . . . Analyze 4 | . . 4 . . . Garrison Access Hacks . | . . . . . . Unauthorized Hacks . | . . . . . . Terminals . | . . . . . . Fabricators . | . . . . . . Repair Stations . | . . . . . . Recycling Units . | . . . . . . Scanalyzers . | . . . . . . Garrison Access . | . . . . . . Data Cores Recovered . | . . . . . . Used . | . . . . . . Hacking Detections 7 | . 1 3 3 . . Full Trace Events 1 | . . . 1 . . Feedback Events . | . . . . . . Feedback Blocked . | . . . . . . Robot Schematics Acquired . | . . . . . . Robots Built . | . . . . . . Authchips . | . . . . . . Time . | . . . . . . Total Robot Build Rating . | . . . . . . Part Schematics Acquired 3 | . . 3 . . . Parts Built . | . . . . . . Authchips . | . . . . . . Time . | . . . . . . Total Part Build Rating . | . . . . . . Parts Repaired . | . . . . . . Time . | . . . . . . Parts Recycled . | . . . . . . Recycled Matter 89 | . . . 89 . . Retrieved Matter . | . . . . . . Retrieved Components . | . . . . . . Parts Scanalyzed 3 | . . 3 . . . Part Schematics Acquired 3 | . . 3 . . . Parts Damaged . | . . . . . . Bothacking | -11 -10 -9 -8 -7 -7 ------------ Run | Yrd Mat Mat Mat Fac Was Used RIF Installer . | . . . . . . Robots Hacked . | . . . . . . Non-combat . | . . . . . . Combat . | . . . . . . Robot Hacks Applied . | . . . . . . Relay Couplers Released . | . . . . . . Fabnet Peak Effective % . | . . . . . . Robots Rewired . | . . . . . . Allies Hacked . | . . . . . . Hacks Repelled . | . . . . . . Allies | -11 -10 -9 -8 -7 -7 -------- Run | Yrd Mat Mat Mat Fac Was Total Allies 1 | . . . . . 1 Largest Group 1 | . . . . . 1 Highest-Rated Group 31 | . . . . . 31 Highest-Rated Ally 31 | . . . . . 31 Total Orders . | . . . . . . Ally Attacks 5 | . . . . . 5 Total Damage 83 | . . . . . 83 Kills . | . . . . . . Allies Corrupted . | . . . . . . Allies Melted . | . . . . . . Intel | -11 -10 -9 -8 -7 -7 ------- Run | Yrd Mat Mat Mat Fac Was Robot Analysis Total 1 | . 1 . . . . Derelict Logs Recovered . | . . . . . . Drone Launches . | . . . . . . Drone Recoveries . | . . . . . . Exploration | -11 -10 -9 -8 -7 -7 ------------- Run | Yrd Mat Mat Mat Fac Was Turns Passed 2190 | 253 514 493 453 378 99 Spaces Moved 1463 | 123 367 363 314 245 51 Core 338 | 4 . 40 291 . 3 Treads 396 | 119 204 . 23 17 33 Legs 167 | . . . . 167 . Wheels . | . . . . . . Hover 562 | . 163 323 . 61 15 Flight . | . . . . . . Fastest Speed 50 | 50 56 50 50 76 50 Average Speed 115 | 156 113 80 126 124 154 Slowest Speed 200 | 160 160 200 200 170 170 Overloaded Moves . | . . . . . . Propulsion Burnouts . | . . . . . . Robots Hopped . | . . . . . . Cave-ins Triggered . | . . . . . . Exploration Rate (%) 31 | 9 56 46 35 11 31 Regions Visited 5 Branch Regions . Pre-discovered Areas . | . . . . . . Known Exits Taken . | . . . . . . Unknown Exits Taken 4 | 1 1 1 1 . . Scrap Searched . | . . . . . . Spaces Dug 3 | . 3 . . . . Terrain Destroyed 34 | . 9 19 6 . . Melee . | . . . . . . Projectile 3 | . 3 . . . . AOE 31 | . 6 19 6 . . Terrain Rammed . | . . . . . . Walls Destroyed . | . . . . . . Machines Disabled . | . . . . . . Actions | -11 -10 -9 -8 -7 -7 --------- Run | Yrd Mat Mat Mat Fac Was Total 1864 | 156 421 556 351 312 68 Wait 225 | 1 4 177 2 41 . Move 1459 | 122 366 362 313 245 51 Hop . | . . . . . . Pick Up 41 | 11 10 2 8 10 . Fast Attach 4 | . 1 2 . . 1 Attach 29 | 7 3 3 9 7 . Detach 4 | . 3 1 . . . Swap 5 | . 4 . 1 . . Drop 11 | 1 8 1 . 1 . Fire 67 | 14 22 5 18 8 . Melee . | . . . . . . Ram 18 | . . 3 . . 15 Kick . | . . . . . . Crush 1 | . . . . . 1 Escape Stasis . | . . . . . . Rewire . | . . . . . . Trap . | . . . . . . Miscellaneous . | . . . . . . Route ------- -11/Scrapyard -10/Materials (discovered 2 exits: *Mat x2) -9/Materials -8/Materials -7/Factory -7/Waste History --------- Turn | Location | Event 8 | -11/Scrapyard | Discovered new exit (range 16) 254 | -11/Scrapyard | Entered Materials 312 | -10/Materials | Build established: Mutant 477 | -10/Materials | Discovered new exit (range 3) 732 | -10/Materials | Discovered new exit (range 10) 768 | -10/Materials | Entered another Materials area 768 | -9/Materials | Evolved 2 slots: Utility x2 1108 | -9/Materials | Build established: Infiltrator-Mutant 1252 | -9/Materials | Core integrity fell below 50% 1257 | -9/Materials | Discovered new exit (range 6) 1261 | -9/Materials | Entered another Materials area 1261 | -8/Materials | Evolved 2 slots: Power x1, Utility x1 1289 | -8/Materials | Lost 4 parts (2p1u1w) 1642 | -8/Materials | Core integrity fell below 50% 1653 | -8/Materials | Build established: Mutant 1668 | -8/Materials | Discovered new exit (range 18) 1687 | -8/Materials | Core integrity fell below 20% 1714 | -8/Materials | Entered Factory 1714 | -7/Factory | Evolved 2 slots: Propulsion x1, Utility x1 2092 | -7/Factory | Sucked down chute 2092 | -7/Factory | Entered Waste 2093 | -7/Waste | Met a frightened Derelict 2107 | -7/Waste | EMP discharged 2114 | -7/Waste | System corruption reached 10% 2142 | -7/Waste | Spotted C-40 Crusher 2147 | -7/Waste | Spotted C-40 Crusher 2147 | -7/Waste | Spotted C-40 Crusher 2149 | -7/Waste | Spotted C-40 Crusher 2171 | -7/Waste | Crushed by Compactor (1 part destroyed, 2 dropped) 2173 | -7/Waste | Crushed by Compactor (1 part destroyed, 2 dropped) 2174 | -7/Waste | Crushed by Compactor (1 part destroyed, 1 dropped) 2176 | -7/Waste | Crushed by Compactor (1 part destroyed, 1 dropped) 2177 | -7/Waste | Crushed by Compactor (1 part destroyed) 2181 | -7/Waste | Core integrity fell below 50% 2187 | -7/Waste | Core integrity fell below 20% 2191 | -7/Waste | Destroyed by C-40 Crusher with Compactor Last Messages --------------- 2 Matter crushed. Slammed into C-40 Crusher. Destabilizing: Core damaged (-7). 3 Matter crushed. Slammed into C-40 Crusher. Corrupted Imp. Focal Shield crushed. 7 Matter crushed. Slammed into C-40 Crusher. Destabilizing: System corrupted (+2). Slammed into C-40 Crusher. 2 Matter crushed. Slammed into C-40 Crusher. 2 Matter crushed. Slammed into C-40 Crusher. 5 Matter crushed. Slammed into C-40 Crusher. Destabilizing: Core damaged (-7). 4 Matter crushed. 5 Matter crushed. Lrg. Battery crushed. Map ----- +----------------------------------------------------+ | ?????????????????????????????????????????????????? | | ?????????????????????????????????????????????????? | | ?????????????????????????????????????????????????? | | ?????????????????????????????????????????????????? | | ?????????????????????????????????????????????????? | | ?????????????????????????????????????????????????? | | ?????????????????????????????????????????????????? | | ?????????????????????????????????????????????????? | | ?????????????????????????????????????????????????? | | ?????????????????????????????????????????????????? | | ?????????????????????????????????????????????????? | | ?????????????????????????????????????????????????? | | ?????????????????????????????????????????????????? | | ?????????????????????????????????????????????????? | | ?????????????????????????????????????????????????? | | ?????????????????????????????????????????????????? | | ?????????????????????????????????????????????????? | | ?????????????????????????????????????????????????? | | ?????????????????##########??????????????????????? | | ?????????????????# #??????????????????????? | | ?????????????????# #??????????????????????? | | ?????????????????# #??????????????????????? | | ?????????????????# ! #??????????????????????? | | ?????????????????# #??????????????????????? | | ?????????????????# CCCC #??????????????????????? | | ?????????????????# CCCC@#??????????????????????? | | ?????????????????# =% #??????????????????????? | | ?????????????????### CC###??????????????????????? | | ???????????????????# CC#????????????????????????? | | ???????????????????# #???????????#????????????? | | ???????????????????# #????????? #????????????? | | ?????????????????### ######## ###??????????? | | ?????????????????# ?????????? | | ?????????????????# ?????????? | | ?????????????????# ?????????? | | ?????????????????# ?????????? | | ?????????????????### ######## ###??????????? | | ?????############??# #????????? #????????????? | | ?????# #??# ! #???????????#????????????? | | ?????# #??# #????????????????????????? | | ?????# #### =%#????????????????????????? | | ?????# ! #????????????????????????? | | ?????# #????????????????????????? | | ?????# #????????????????????????? | | ?????# #????????????????????????? | | ?????# #### #????????????????????????? | | ?????# #??# #????????????????????????? | | ?????# #??# #????????????????????????? | | ?????############??# #????????????????????????? | | ?????????????????### #????????????????????????? | +----------------------------------------------------+ Best States ------------- Heat Dissipation 34 Energy Generation 15 Energy Capacity 350 Matter Stores 300 Matter Capacity 300 Sight Range 20 Terrain Scan Range 16 Terrain Scan Density 10 ECM Strength 1 Jamming Range 12 Evasion (%) 55 Targeting Accuracy 8 Recoil Reduction 2 Item Schematics ----------------- Grenade Launcher | -9/Materials | Scanalyzed Lrg. Battery | -9/Materials | Scanalyzed Lgt. Nuclear Core | -9/Materials | Scanalyzed Robot Schematics ------------------ None Fabricated ------------ Nothing Alien Tech Used ----------------- None Achievements -------------- Close Call Slippery One Total Silence Challenges ------------ None Game ------ Seed FrostBlastWeb Manual? 0 Play Time 00:52:30 Cumulative 9.7 hours Start 2024.04.04 @ 11:31:03 End 2024.04.04 @ 12:24:36 Sessions 1 Manual Loads 0 Difficulty Rogue Special Mode None Game No. 6 Rogue 6 Adventurer 0 Explorer 0 Win Type - Total 0 Types 0/0/0/0/0/0/0/0/0 Lore% 7 Gallery% 13 Achievement% 12 Wizard Run 0 Options --------- Layout 1 ASCII 0 Keyboard 0 Movement Mouse Keybinds 0 Fullscreen 1 Font 24/Smallcaps Map View 50x35 Zoom Use 0% Tactical HUD 0 Map Filters NONE Filters NONE Steam 1 RUN: 8e09ef15-ea5e-474f-99ca-64a139430073